fUSD/lending_fUSD_20240915
["ID","MTS","AMOUNT","RATE_DAILY","PERIOD"]
[338210677,1726386667041,-1772.7,0.00013608,2]
[338210678,1726386667050,-1342.24,0.00013608,2]
[338210679,1726386667060,-613.39,0.00013608,2]
[338210680,1726386667069,-3121.53,0.00013608,2]
[338210681,1726386667078,-694.0,0.00013659,2]
[338210682,1726386667087,-1530.95158959,0.00013695,2]
[338210683,1726386667096,-700.0,0.00013698,2]
[338210684,1726386667106,-700.0,0.00013698,2]
[338210685,1726386667115,-700.0,0.00013698,2]
[338210686,1726386667124,-700.0,0.00013698,2]
[338210687,1726386667133,-4791.36,0.00013699,2]
[338210688,1726386667142,-2751.0,0.00013699,2]
[338210689,1726386667152,-200.0,0.00013699,2]
[338210690,1726386667161,-242.84,0.00013699,2]
[338210691,1726386667170,-500.0,0.00013699,2]
[338210692,1726386667179,-151.0,0.00013699,2]
[338210693,1726386667188,-150.0,0.00013699,2]
[338210694,1726386667199,-400.0,0.000137,5]
[338210695,1726386667209,-226.0,0.000137,2]
[338210696,1726386667219,-561.98,0.00013708,2]
[338210697,1726386667228,-500.0,0.00013708,2]
[338210698,1726386667238,-500.0,0.00013708,2]
[338210699,1726386667247,-500.0,0.00013708,2]
[338210700,1726386667256,-1436.51,0.00013708,2]
[338210701,1726386667265,-500.0,0.00013708,2]
[338210702,1726386667275,-928.51,0.00013708,2]
[338210703,1726386667285,-842.4,0.00013708,2]
[338210704,1726386667295,-500.0,0.00013708,2]
[338210705,1726386667305,-1164.17,0.00013708,2]
[338210706,1726386667314,-645.17,0.00013708,2]
[338210707,1726386667323,-500.0,0.00013708,2]
[338210708,1726386667333,-639.18,0.00013708,2]
[338210709,1726386667343,-500.0,0.00013708,2]
[338210710,1726386667352,-591.77,0.00013708,2]
[338210711,1726386667361,-500.0,0.00013708,2]
[338210712,1726386667371,-602.89,0.00013708,2]
[338210713,1726386667380,-1098.11,0.00013708,2]
[338210714,1726386667389,-500.0,0.00013708,2]
[338210715,1726386667399,-715.1,0.00013708,2]
[338210716,1726386667408,-952.96,0.00013708,2]
[338210717,1726386667417,-1104.7,0.00013708,2]
[338210718,1726386667426,-621.97,0.00013708,2]
[338210719,1726386667435,-562.73,0.00013708,2]
[338210720,1726386667445,-500.0,0.00013708,2]
[338210721,1726386667455,-708.31,0.00013708,2]
[338210722,1726386667464,-665.16,0.00013708,2]
[338210723,1726386667473,-500.0,0.00013708,2]
[338210724,1726386667483,-500.0,0.00013708,2]
[338210725,1726386667492,-500.0,0.00013708,2]
[338210726,1726386667501,-510.07661316,0.00013708,2]
[338210727,1726386667510,-500.0,0.00013708,2]
[338210728,1726386667520,-1124.15,0.00013708,2]
[338210729,1726386667529,-1571.64,0.00013708,2]
[338210730,1726386667539,-1574.41,0.00013708,2]
[338210731,1726386667549,-600.39,0.00013708,2]
[338210732,1726386667558,-500.0,0.00013708,2]
[338210733,1726386667568,-708.84,0.00013708,2]
[338210734,1726386667579,-720.71,0.00013708,2]
[338210735,1726386667591,-502.03486026,0.00013708,2]
[338210736,1726386667600,-500.0,0.00013708,2]
[338210737,1726386667610,-500.0,0.00013708,2]
[338210738,1726386667620,-650.12,0.00013708,2]
[338210739,1726386667630,-192.68073297,0.00013708,2]
[338210740,1726386667639,-500.0,0.00013708,2]
[338210741,1726386667648,-500.0,0.00013708,2]
[338210742,1726386667659,-1249.23,0.00013708,2]
[338210743,1726386667668,-500.0,0.00013708,2]
[338210744,1726386667678,-500.0,0.00013708,2]
[338210745,1726386667687,-500.0,0.00013708,2]
[338210746,1726386667697,-708.48,0.00013708,2]
[338210747,1726386667706,-802.37,0.00013708,2]
[338210748,1726386667715,-639.47,0.00013708,2]
[338210749,1726386667724,-556.09,0.00013708,2]
[338210750,1726386667733,-500.0,0.00013708,2]
[338210751,1726386667743,-500.0,0.00013708,2]
[338210752,1726386667752,-527.26,0.00013708,2]
[338210753,1726386667761,-500.0,0.00013708,2]
[338210754,1726386667770,-1066.93,0.00013708,2]
[338210755,1726386667779,-646.44,0.00013708,2]
[338210756,1726386667788,-1656.57,0.00013708,2]
[338210757,1726386667798,-763.97,0.00013708,2]
[338210758,1726386667807,-1411.55,0.00013708,2]
[338210759,1726386667817,-500.0,0.00013708,2]
[338210760,1726386667826,-500.0,0.00013708,2]
[338210761,1726386667835,-500.0,0.00013708,2]
[338210762,1726386667845,-550.13,0.00013708,2]
[338210763,1726386667854,-500.0,0.00013708,2]
[338210764,1726386667864,-500.0,0.00013708,2]
[338210765,1726386667873,-546.41,0.00013708,2]
[338210766,1726386667882,-500.0,0.00013708,2]
[338210767,1726386667891,-500.0,0.00013708,2]
[338210768,1726386667901,-1742.19,0.00013708,2]
[338210769,1726386667910,-259.34626508,0.00013708,2]
[338210770,1726386667919,-563.77,0.00013708,2]
[338210771,1726386668099,-500.0,0.00013708,2]
[338210772,1726386668109,-500.0,0.00013708,2]
[338210773,1726386668119,-500.0,0.00013708,2]
[338210774,1726386668128,-500.0,0.00013708,2]
[338210775,1726386668137,-500.0,0.00013708,2]
[338210776,1726386668147,-500.0,0.00013708,2]
[338210777,1726386668157,-500.0,0.00013708,2]
[338210778,1726386668166,-500.0,0.00013708,2]
[338210779,1726386668176,-574.37,0.00013708,2]
[338210780,1726386668186,-1322.16,0.00013708,2]
[338210781,1726386668195,-1524.68,0.00013708,2]
[338210782,1726386668204,-722.53,0.00013708,2]
[338210783,1726386668213,-1451.07,0.00013708,2]
[338210784,1726386668222,-724.0,0.00013708,2]
[338210785,1726386668232,-1263.3,0.00013708,2]
[338210786,1726386668242,-500.0,0.00013708,2]
[338210787,1726386668251,-831.32,0.00013708,2]
[338210788,1726386668260,-500.0,0.00013708,2]
[338210789,1726386668270,-1412.73,0.00013708,2]
[338210790,1726386668280,-535.97,0.00013708,2]
[338210791,1726386668290,-762.35,0.00013708,2]
[338210792,1726386668299,-592.82,0.00013708,2]
[338210793,1726386668308,-500.0,0.00013708,2]
[338210794,1726386668318,-150.0,0.00013708,2]
[338210795,1726386668327,-500.0,0.00013708,2]
[338210796,1726386668336,-1356.7,0.00013708,2]
[338210797,1726386668346,-698.9,0.00013708,2]
[338210798,1726386668356,-1023.51,0.00013708,2]
[338210799,1726386668366,-500.0,0.00013708,2]
[338210800,1726386668376,-654.13,0.00013708,2]
[338210801,1726386668387,-500.0,0.00013708,2]
[338210802,1726386668396,-155.44246238,0.00013708,2]
[338210803,1726386668406,-500.0,0.00013708,2]
[338210804,1726386668416,-805.52,0.00013708,2]
[338210805,1726386668425,-500.0,0.00013708,2]
[338210806,1726386668435,-500.0,0.00013708,2]
[338210807,1726386668445,-545.85,0.00013708,2]
[338210808,1726386668455,-500.0,0.00013708,2]
[338210809,1726386668464,-995.8,0.00013708,2]
[338210810,1726386668473,-1242.26,0.00013708,2]
[338210811,1726386668483,-152.0,0.00013728,3]
[338210812,1726386668493,-1000.0,0.00013776,2]
[338210813,1726386668502,-1000.0,0.00013778,2]
[338210814,1726386668512,-1000.0,0.00013778,2]
[338210815,1726386668521,-1000.0,0.00013778,2]
[338210816,1726386668531,-1000.0,0.00013778,2]
[338210817,1726386668540,-1000.0,0.00013778,2]
[338210818,1726386668550,-1000.0,0.00013778,2]
[338210819,1726386668560,-1000.0,0.00013778,2]
[338210820,1726386668570,-1000.0,0.00013778,2]
[338210821,1726386668584,-1000.0,0.00013778,2]
[338210822,1726386668595,-1000.0,0.00013778,2]
[338210823,1726386668604,-1000.0,0.00013778,2]
[338210824,1726386668614,-1000.0,0.00013778,2]
[338210825,1726386668623,-1000.0,0.00013778,2]
[338210826,1726386668632,-1000.0,0.00013778,2]
[338210827,1726386668642,-1000.0,0.00013778,2]
[338210828,1726386668652,-1000.0,0.00013798,2]
[338210829,1726386668662,-1000.0,0.00013798,2]
[338210830,1726386668671,-1000.0,0.00013798,2]
[338210831,1726386668681,-1000.0,0.00013798,2]
[338210832,1726386668691,-1000.0,0.00013798,2]
[338210833,1726386668708,-1000.0,0.00013798,2]
[338210834,1726386668718,-1000.0,0.00013798,2]
[338210835,1726386668727,-1000.0,0.00013798,2]
[338210836,1726386668737,-1000.0,0.00013798,2]
[338210837,1726386668746,-1000.0,0.00013798,2]
[338210838,1726386668755,-1000.0,0.00013798,2]
[338210839,1726386668765,-1000.0,0.00013798,2]
[338210840,1726386668774,-1000.0,0.00013798,2]
[338210841,1726386668783,-1000.0,0.00013798,2]
[338210842,1726386668792,-1000.0,0.00013798,2]
[338210843,1726386668801,-303.46,0.000138,2]
[338210844,1726386668810,-232.4367,0.000138,2]
[338210845,1726386668819,-1002.38,0.000138,2]
[338210846,1726386668828,-232.4367,0.000138,2]
[338210847,1726386668838,-400.0,0.000138,5]
[338210848,1726386668847,-90408.3347864,0.000138,2]
[338210849,1726386668856,-355.349001,0.000138,2]
[338210850,1726386668866,-1859.58,0.00013808,2]
[338210851,1726386668875,-1143.63,0.00013808,2]
[338210852,1726386668884,-3037.41,0.00013808,2]
[338210853,1726386668893,-2304.04,0.00013808,2]
[338210854,1726386668902,-3196.08,0.00013808,2]
[338210855,1726386668911,-752.52,0.00013808,2]
[338210856,1726386668920,-500.0,0.00013808,2]
[338210857,1726386668930,-5529.83,0.00013808,2]
[338210858,1726386668939,-22864.29,0.00013808,2]
[338210859,1726386668951,-4100.35,0.00013808,2]
[338210860,1726386668960,-535.73,0.00013808,2]
[338210861,1726386668970,-9326.93,0.00013808,2]
[338210862,1726386668979,-1699.66,0.00013808,2]
[338210863,1726386668990,-818.44,0.00013808,2]
[338210864,1726386668999,-2372.87,0.00013808,2]
[338210865,1726386669009,-1736.72,0.00013808,2]
[338210866,1726386669019,-3142.64,0.00013808,2]
[338210867,1726386669028,-2320.73,0.00013808,2]
[338210868,1726386669037,-2113.01,0.00013878,2]
[338210869,1726386669046,-2238.96,0.00013878,2]
[338210870,1726386669055,-2019.7,0.00013878,2]
[338210871,1726386669064,-586.83,0.00013878,2]
[338210872,1726386669075,-3124.91,0.00013878,2]
[338210873,1726386669084,-968.98,0.00013878,2]
[338210874,1726386669093,-2456.08,0.00013878,2]
[338210875,1726386669102,-1949.11,0.00013878,2]
[338210876,1726386669112,-1848.91,0.00013878,2]
[338210877,1726386669120,-7557.05,0.00013878,2]
[338210878,1726386669130,-3493.4,0.00013878,2]
[338210879,1726386669139,-2992.82,0.00013878,2]
[338210880,1726386669148,-1981.17,0.00013878,2]
[338210881,1726386669158,-2109.44,0.00013878,2]
[338210882,1726386669167,-1429.35,0.00013878,2]
[338210883,1726386669177,-1380.26,0.00013878,2]
[338210884,1726386669186,-807.33,0.00013878,2]
[338210885,1726386669199,-673.25,0.00013878,2]
[338210886,1726386669212,-1456.37,0.00013878,2]
[338210887,1726386669221,-927.79,0.00013878,2]
[338210888,1726386669231,-1084.0,0.00013878,2]
[338210889,1726386669240,-1156.39,0.00013878,2]
[338210890,1726386669249,-1829.98,0.00013879,2]
[338210891,1726386669259,-1618.9,0.00013879,2]
[338210892,1726386669268,-500.0,0.00013879,2]
[338210893,1726386669277,-2412.16,0.00013879,2]
[338210894,1726386669286,-902.27,0.00013879,2]
[338210895,1726386669299,-1114.81,0.00013879,2]
[338210896,1726386669319,-590.87,0.00013879,2]
[338210897,1726386669334,-1291.36,0.00013879,2]
[338210898,1726386669352,-1805.22,0.00013879,2]
[338210899,1726386669373,-3078.06,0.00013879,2]
[338210900,1726386669408,-1393.41,0.00013879,2]
[338210901,1726386669425,-619.5,0.00013879,2]
[338210902,1726386669441,-1836.24,0.00013879,2]
[338210903,1726386669458,-500.0,0.00013879,2]
[338210904,1726386669476,-1437.52,0.00013879,2]
[338210905,1726386669494,-748.26,0.00013879,2]
[338210906,1726386669512,-1080.77,0.00013879,2]
[338210907,1726386669523,-515.37,0.00013879,2]
[338210908,1726386669540,-752.33,0.00013879,2]
[338210909,1726386669554,-618.21,0.00013879,2]
[338210910,1726386669570,-579.73,0.00013879,2]
[338210911,1726386669587,-1002.53,0.00013879,2]
[338210912,1726386669604,-515.5,0.00013879,2]
[338210913,1726386669619,-1779.54,0.00013879,2]
[338210914,1726386669633,-651.76,0.00013879,2]
[338210915,1726386669648,-1776.68,0.00013879,2]
[338210916,1726386669663,-500.0,0.00013879,2]
[338210917,1726386669677,-500.0,0.00013879,2]
[338210918,1726386669693,-2137.83,0.00013879,2]
[338210919,1726386669707,-2288.36,0.00013879,2]
[338210920,1726386669722,-1091.66,0.00013879,2]
[338210921,1726386669736,-1983.39,0.00013879,2]
[338210922,1726386669752,-500.0,0.00013879,2]
[338210923,1726386669768,-589.98,0.00013879,2]
[338210924,1726386669782,-500.0,0.00013879,2]
[338210925,1726386669796,-500.0,0.00013879,2]
[338210926,1726386669811,-646.3,0.00013879,2]
[338210927,1726386669824,-1741.77,0.00013879,2]
[338210928,1726386669839,-938.18,0.00013879,2]
[338210929,1726386669854,-528.66,0.00013879,2]
[338210930,1726386669869,-1133.43,0.00013879,2]
[338210931,1726386669883,-1044.98,0.00013879,2]
[338210932,1726386669897,-2653.92,0.00013879,2]
[338210933,1726386669910,-2096.53,0.00013879,2]
[338210934,1726386669924,-1005.33,0.00013879,2]
[338210935,1726386669937,-1243.03,0.00013879,2]
[338210936,1726386669952,-1748.44,0.00013879,2]
[338210937,1726386669967,-1177.2,0.00013879,2]
[338210938,1726386669980,-731.09,0.00013879,2]
[338210939,1726386669995,-1761.9,0.00013879,2]
[338210940,1726386670009,-1713.17,0.00013879,2]
[338210941,1726386670023,-500.0,0.00013879,2]
[338210942,1726386670037,-1325.82,0.00013879,2]
[338210943,1726386670050,-1492.55,0.00013879,2]
[338210944,1726386670064,-653.79,0.00013879,2]
[338210945,1726386670077,-906.63,0.00013879,2]
[338210946,1726386670091,-1834.83,0.00013879,2]
[338210947,1726386670105,-500.0,0.00013879,2]
[338210948,1726386670119,-37692.85,0.00013879,2]
[338210949,1726386670135,-783.83,0.00013879,2]
[338210950,1726386670155,-1233.5,0.00013879,2]
[338210951,1726386670169,-500.0,0.00013879,2]
[338210952,1726386670182,-1026.37,0.00013879,2]
[338210953,1726386670196,-2744.15,0.00013879,2]
[338210954,1726386670210,-2296.47,0.00013879,2]
[338210955,1726386670224,-500.0,0.00013879,2]
[338210956,1726386670238,-793.21,0.00013879,2]
[338210957,1726386670252,-528.17,0.00013879,2]
[338210958,1726386670266,-731.12,0.00013879,2]
[338210959,1726386670280,-3505.49,0.00013879,2]
[338210960,1726386670295,-1451.47,0.00013879,2]
[338210961,1726386670309,-1113.36,0.00013879,2]
[338210962,1726386670323,-500.0,0.00013879,2]
[338210963,1726386670337,-1469.02,0.00013879,2]
[338210964,1726386670351,-5674.86,0.00013879,2]
[338210965,1726386670365,-1123.21,0.00013879,2]
[338210966,1726386670379,-1895.66,0.00013879,2]
[338210967,1726386670392,-500.0,0.00013879,2]
[338210968,1726386670406,-6306.86,0.00013879,2]
[338210969,1726386670421,-500.0,0.00013879,2]
[338210970,1726386670435,-941.47,0.00013879,2]
[338210971,1726386670452,-687.97,0.00013879,2]
[338210972,1726386670467,-1613.22,0.00013879,2]
[338210973,1726386670481,-1288.28,0.00013879,2]
[338210974,1726386670495,-1324.08,0.00013879,2]
[338210975,1726386670509,-425.84638293,0.00013879,2]
[338210976,1726386670523,-500.0,0.00013879,2]
[338210977,1726386670538,-755.08,0.00013879,2]
[338210978,1726386670551,-2206.36,0.00013879,2]
[338210979,1726386670565,-5253.79,0.00013879,2]
[338210980,1726386670579,-633.9,0.00013879,2]
[338210981,1726386670597,-500.0,0.00013879,2]
[338210982,1726386670611,-311.69877518,0.00013879,2]
[338210983,1726386670626,-1836.18,0.00013879,2]
[338210984,1726386670641,-500.0,0.00013879,2]
[338210985,1726386670655,-500.0,0.00013879,2]
[338210986,1726386670669,-500.0,0.00013879,2]
[338210987,1726386670684,-1195.24,0.00013879,2]
[338210988,1726386670698,-2066.23,0.00013879,2]
[338210989,1726386670711,-5265.45,0.00013879,2]
[338210990,1726386670727,-500.0,0.00013879,2]
[338210991,1726386670741,-1198.34,0.00013879,2]
[338210992,1726386670755,-500.0,0.00013879,2]
[338210993,1726386670769,-1494.33,0.00013879,2]
[338210994,1726386670782,-1070.63,0.00013879,2]
[338210995,1726386670797,-625.13,0.00013879,2]
[338210996,1726386670811,-500.0,0.00013879,2]
[338210997,1726386670825,-577.47,0.00013879,2]
[338210998,1726386670840,-422.0323722,0.00013879,2]
[338210999,1726386670854,-1259.12,0.00013879,2]
[338211000,1726386670867,-898.73,0.00013879,2]
[338211001,1726386670880,-2158.21,0.00013879,2]
[338211002,1726386670894,-500.0,0.00013879,2]
[338211003,1726386670908,-1377.51,0.00013879,2]
[338211004,1726386670921,-2187.18,0.00013879,2]
[338211005,1726386670934,-500.0,0.00013879,2]
[338211006,1726386670948,-1790.42,0.00013879,2]
[338211007,1726386670961,-500.0,0.00013879,2]
[338211008,1726386670975,-3866.89,0.00013879,2]
[338211009,1726386670988,-500.0,0.00013879,2]
[338211010,1726386671002,-1154.78,0.00013879,2]
[338211011,1726386671017,-509.68,0.00013879,2]
[338211012,1726386671030,-809.72,0.00013879,2]
[338211013,1726386671043,-1899.94,0.00013879,2]
[338211014,1726386671058,-500.0,0.00013879,2]
[338211015,1726386671072,-1753.97,0.00013879,2]
[338211016,1726386671086,-533.25,0.00013879,2]
[338211017,1726386671097,-500.0,0.00013879,2]
[338211018,1726386671106,-747.56,0.00013879,2]
[338211019,1726386671115,-1324.16,0.00013879,2]
[338211020,1726386671390,-500.0,0.00013879,2]
[338211021,1726386671423,-2065.81,0.00013879,2]
[338211022,1726386671435,-3817.83,0.00013879,2]
[338211023,1726386671445,-838.03,0.00013879,2]
[338211024,1726386671455,-1091.04,0.00013879,2]
[338211025,1726386671464,-7177.3,0.00013879,2]
[338211026,1726386671473,-500.0,0.00013879,2]
[338211027,1726386671482,-500.0,0.00013879,2]
[338211028,1726386671491,-616.51,0.00013879,2]
[338211029,1726386671500,-2748.05,0.00013879,2]
[338211030,1726386671509,-606.95,0.00013879,2]
[338211031,1726386671518,-1033.18,0.00013879,2]
[338211032,1726386671527,-500.0,0.00013879,2]
[338211033,1726386671537,-3584.94,0.00013879,2]
[338211034,1726386671546,-3719.36,0.00013879,2]
[338211035,1726386671555,-718.46,0.00013879,2]
[338211036,1726386671564,-500.0,0.00013879,2]
[338211037,1726386671573,-500.0,0.00013879,2]
[338211038,1726386671582,-500.0,0.00013879,2]
[338211039,1726386671596,-500.0,0.00013879,2]
[338211040,1726386671605,-6552.93,0.00013879,2]
[338211041,1726386671614,-500.0,0.00013879,2]
[338211042,1726386671623,-2287.8,0.00013879,2]
[338211043,1726386671635,-1885.49,0.00013879,2]
[338211044,1726386671645,-2590.47,0.00013879,2]
[338211045,1726386671654,-500.0,0.00013879,2]
[338211046,1726386671664,-2059.56,0.00013879,2]
[338211047,1726386671675,-2663.67,0.00013879,2]
[338211048,1726386671685,-831.17,0.00013879,2]
[338211049,1726386671694,-775.53,0.00013879,2]
[338211050,1726386671703,-11999.75,0.00013879,2]
[338211051,1726386671713,-2667.45,0.00013879,2]
[338211052,1726386671722,-500.0,0.00013879,2]
[338211053,1726386671731,-8752.31,0.00013879,2]
[338211054,1726386671740,-1008.39,0.00013879,2]
[338211055,1726386671750,-3162.56,0.00013879,2]
[338211056,1726386671759,-500.0,0.00013879,2]
[338211057,1726386671768,-500.0,0.00013879,2]
[338211058,1726386671778,-1792.48,0.00013879,2]
[338211059,1726386671787,-8994.6,0.00013879,2]
[338211060,1726386671797,-38442.91,0.00013879,2]
[338211061,1726386671806,-538.29,0.00013879,2]
[338211062,1726386671815,-188.4960925,0.00013879,2]
[338211063,1726386671825,-500.0,0.00013879,2]
[338211064,1726386671834,-500.0,0.00013879,2]
[338211065,1726386671843,-3192.74,0.00013879,2]
[338211066,1726386671852,-961.96,0.00013879,2]
[338211067,1726386671861,-2222.79,0.00013879,2]
[338211068,1726386671870,-500.0,0.00013879,2]
[338211069,1726386671880,-500.0,0.00013879,2]
[338211070,1726386671889,-1669.12,0.00013879,2]
[338211071,1726386671898,-761.1,0.00013879,2]
[338211072,1726386671907,-1021.7,0.00013879,2]
[338211073,1726386671917,-2538.68,0.00013879,2]
[338211074,1726386671926,-2565.54,0.00013879,2]
[338211075,1726386671936,-3498.66,0.00013879,2]
[338211076,1726386671946,-4772.15,0.00013879,2]
[338211077,1726386671955,-500.0,0.00013879,2]
[338211078,1726386671964,-1063.36,0.00013879,2]
[338211079,1726386671973,-636.46,0.00013879,2]
[338211080,1726386671982,-1130.26,0.00013879,2]
[338211081,1726386671992,-1957.62,0.00013879,2]
[338211082,1726386672001,-500.0,0.0001388,2]
[338211083,1726386672010,-1036.95,0.0001388,2]
[338211084,1726386672020,-969.32,0.0001388,2]
[338211085,1726386672029,-576.29,0.0001388,2]
[338211086,1726386672038,-500.0,0.0001388,2]
[338211087,1726386672048,-500.0,0.0001388,2]
[338211088,1726386672059,-500.0,0.0001388,2]
[338211089,1726386672070,-500.0,0.0001388,2]
[338211090,1726386672079,-500.0,0.0001388,2]
[338211091,1726386672088,-500.0,0.0001388,2]
[338211092,1726386672098,-500.66,0.0001388,2]
[338211093,1726386672107,-500.0,0.0001388,2]
[338211094,1726386672116,-500.0,0.0001388,2]
[338211095,1726386672125,-500.0,0.0001388,2]
[338211096,1726386672134,-626.92,0.0001388,2]
[338211097,1726386672143,-929.36,0.0001388,2]
[338211098,1726386672152,-633.96,0.0001388,2]
[338211099,1726386672162,-500.0,0.0001388,2]
[338211100,1726386672171,-503.57,0.0001388,2]
[338211101,1726386672180,-829.2,0.0001388,2]
[338211102,1726386672189,-500.0,0.0001388,2]
[338211103,1726386672203,-891.82,0.0001388,2]
[338211104,1726386672212,-500.0,0.0001388,2]
[338211105,1726386672222,-919.28,0.0001388,2]
[338211106,1726386672231,-520.65,0.0001388,2]
[338211107,1726386672241,-1127.16,0.0001388,2]
[338211108,1726386672251,-500.0,0.0001388,2]
[338211109,1726386672261,-811.79,0.0001388,2]
[338211110,1726386672270,-1430.93,0.0001388,2]
[338211111,1726386672279,-389.08656869,0.0001388,2]
[338211112,1726386672289,-518.92,0.0001388,2]
[338211113,1726386672299,-500.0,0.0001388,2]
[338211114,1726386672309,-619.57,0.0001388,2]
[338211115,1726386672319,-500.0,0.0001388,2]
[338211116,1726386672328,-1437.76,0.0001388,2]
[338211117,1726386672337,-500.0,0.0001388,2]
[338211118,1726386672347,-500.0,0.0001388,2]
[338211119,1726386672356,-500.0,0.0001388,2]
[338211120,1726386672365,-929.12,0.0001388,2]
[338211121,1726386672374,-3127.64,0.0001388,2]
[338211122,1726386672384,-1380.36,0.0001388,2]
[338211123,1726386672393,-222.83371284,0.0001388,2]
[338211124,1726386672402,-500.0,0.0001388,2]
[338211125,1726386672412,-500.0,0.0001388,2]
[338211126,1726386672421,-500.0,0.0001388,2]
[338211127,1726386672430,-500.0,0.0001388,2]
[338211128,1726386672440,-2704.61,0.0001388,2]
[338211129,1726386672450,-963.73,0.0001388,2]
[338211130,1726386672459,-500.0,0.0001388,2]
[338211131,1726386672468,-500.0,0.0001388,2]
[338211132,1726386672513,-500.0,0.0001388,2]
[338211133,1726386672522,-500.0,0.0001388,2]
[338211134,1726386672534,-1179.51,0.0001388,2]
[338211135,1726386672543,-614.95237688,0.0001388,2]
[338211136,1726386672553,-500.0,0.0001388,2]
[338211137,1726386672563,-1009.7,0.0001388,2]
[338211138,1726386672572,-590.02,0.0001388,2]
[338211139,1726386672581,-834.68,0.0001388,2]
[338211140,1726386672595,-667.68,0.0001388,2]
[338211141,1726386672604,-2005.99,0.0001388,2]
[338211142,1726386672613,-908.12,0.0001388,2]
[338211143,1726386672622,-1923.49,0.0001388,2]
[338211144,1726386672632,-2050.36,0.0001388,2]
[338211145,1726386672642,-1528.57,0.0001388,2]
[338211146,1726386672651,-500.0,0.0001388,2]
[338211147,1726386672661,-989.82,0.0001388,2]
[338211148,1726386672671,-1331.9,0.0001388,2]
[338211149,1726386672680,-1908.56,0.0001388,2]
[338211150,1726386672690,-1368.73,0.0001388,2]
[338211151,1726386672699,-500.0,0.0001388,2]
[338211152,1726386672709,-648.5,0.0001388,2]
[338211153,1726386672719,-500.0,0.0001388,2]
[338211154,1726386672728,-548.36,0.0001388,2]
[338211155,1726386672737,-500.0,0.0001388,2]
[338211156,1726386672747,-500.0,0.0001388,2]
[338211157,1726386672756,-1050.22,0.0001388,2]
[338211158,1726386672765,-1215.28,0.0001388,2]
[338211159,1726386672774,-1018.5,0.0001388,2]
[338211160,1726386672784,-2164.46,0.0001388,2]
[338211161,1726386672793,-500.0,0.0001388,2]
[338211162,1726386672802,-500.0,0.0001388,2]
[338211163,1726386672811,-500.0,0.0001388,2]
[338211164,1726386672820,-560.35,0.0001388,2]
[338211165,1726386672829,-500.0,0.0001388,2]
[338211166,1726386672839,-1007.64,0.0001388,2]
[338211167,1726386672848,-500.0,0.0001388,2]
[338211168,1726386672857,-1752.2,0.0001388,2]
[338211169,1726386672867,-500.0,0.0001388,2]
[338211170,1726386672876,-500.0,0.0001388,2]
[338211171,1726386672886,-500.0,0.0001388,2]
[338211172,1726386672895,-1728.97,0.0001388,2]
[338211173,1726386672904,-500.0,0.0001388,2]
[338211174,1726386672913,-500.0,0.0001388,2]
[338211175,1726386672923,-1023.85,0.0001388,2]
[338211176,1726386672932,-500.0,0.0001388,2]